fUSD/lending_fUSD_20260115
["ID","MTS","AMOUNT","RATE_DAILY","PERIOD"]
[402087954,1768515064437,-500.0,0.0003589,10]
[402087955,1768515064447,-500.0,0.0003589,10]
[402087956,1768515064456,-500.0,0.0003589,10]
[402087957,1768515064465,-500.0,0.0003589,10]
[402087958,1768515064475,-685.8,0.0003589,10]
[402087959,1768515064484,-500.0,0.0003589,10]
[402087960,1768515064494,-500.0,0.0003589,10]
[402087961,1768515064503,-500.0,0.0003589,10]
[402087962,1768515064513,-500.0,0.0003589,10]
[402087963,1768515064522,-500.0,0.0003589,10]
[402087964,1768515064532,-500.0,0.0003589,10]
[402087965,1768515064541,-530.97688845,0.0003589,10]
[402087966,1768515064551,-500.0,0.0003589,10]
[402087967,1768515064561,-500.0,0.0003589,10]
[402087968,1768515064570,-588.06,0.0003589,10]
[402087969,1768515064580,-500.0,0.0003589,10]
[402087970,1768515064589,-500.0,0.0003589,10]
[402087971,1768515064599,-1136.4,0.0003589,10]
[402087972,1768515064609,-500.0,0.0003589,10]
[402087973,1768515064620,-500.0,0.0003589,10]
[402087974,1768515064629,-1009.59,0.0003589,10]
[402087975,1768515064639,-500.0,0.0003589,10]
[402087976,1768515064649,-500.0,0.0003589,10]
[402087977,1768515064658,-631.93084265,0.0003589,10]
[402087978,1768515064668,-500.0,0.0003589,10]
[402087979,1768515064677,-598.87,0.0003589,10]
[402087980,1768515064687,-500.0,0.0003589,10]
[402087981,1768515064696,-500.0,0.0003589,10]
[402087982,1768515064705,-500.0,0.0003589,10]
[402087983,1768515064714,-500.0,0.0003589,10]
[402087984,1768515064723,-500.0,0.0003589,10]
[402087985,1768515064732,-500.0,0.0003589,10]
[402087986,1768515064742,-500.0,0.0003589,10]
[402087987,1768515064752,-500.0,0.0003589,10]
[402087988,1768515064761,-823.78,0.0003589,10]
[402087989,1768515064770,-1100.07,0.0003589,10]
[402087990,1768515064779,-543.27,0.0003589,10]
[402087991,1768515064788,-500.0,0.0003589,10]
[402087992,1768515064798,-1339.16,0.0003589,10]
[402087993,1768515064807,-500.0,0.0003589,10]
[402087994,1768515064816,-500.0,0.0003589,10]
[402087995,1768515064825,-500.0,0.0003589,10]
[402087996,1768515064835,-500.0,0.0003589,10]
[402087997,1768515064846,-1506.84,0.0003589,10]
[402087998,1768515064855,-500.0,0.0003589,10]
[402087999,1768515064866,-500.0,0.0003589,10]
[402088000,1768515064875,-500.0,0.0003589,10]
[402088001,1768515064885,-500.0,0.0003589,10]
[402088002,1768515064895,-761.86,0.0003589,10]
[402088003,1768515064905,-500.0,0.0003589,10]
[402088004,1768515064915,-500.0,0.0003589,10]
[402088005,1768515064928,-1030.73,0.0003589,10]
[402088006,1768515064938,-500.0,0.0003589,10]
[402088007,1768515064947,-500.0,0.0003589,10]
[402088008,1768515064956,-534.84,0.0003589,10]
[402088009,1768515064966,-500.0,0.0003589,10]
[402088010,1768515064975,-500.0,0.0003589,120]
[402088011,1768515064984,-500.0,0.0003589,10]
[402088012,1768515064993,-500.0,0.0003589,10]
[402088013,1768515065004,-500.0,0.0003589,10]
[402088014,1768515065014,-500.0,0.0003589,10]
[402088015,1768515065024,-500.0,0.0003589,10]
[402088016,1768515065034,-527.04,0.0003589,10]
[402088017,1768515065043,-942.44,0.0003589,10]
[402088018,1768515065057,-500.0,0.0003589,10]
[402088019,1768515065067,-1585.11,0.0003589,10]
[402088020,1768515065078,-743.41,0.0003589,10]
[402088021,1768515065088,-500.0,0.0003589,10]
[402088022,1768515065097,-541.26,0.0003589,10]
[402088023,1768515065107,-555.49384842,0.0003589,10]
[402088024,1768515065119,-573.88,0.0003589,10]
[402088025,1768515065128,-500.0,0.0003589,10]
[402088026,1768515065138,-778.51,0.0003589,10]
[402088027,1768515065147,-943.81,0.0003589,10]
[402088028,1768515065156,-500.0,0.0003589,10]
[402088029,1768515065165,-500.0,0.0003589,10]
[402088030,1768515065175,-654.29,0.0003589,10]
[402088031,1768515065184,-731.91,0.0003589,10]
[402088032,1768515065193,-1715.61,0.0003589,10]
[402088033,1768515065202,-500.0,0.0003589,10]
[402088034,1768515065211,-500.0,0.0003589,10]
[402088035,1768515065220,-709.53,0.0003589,10]
[402088036,1768515065230,-545.81,0.0003589,10]
[402088037,1768515065240,-500.0,0.0003589,10]
[402088038,1768515065250,-500.0,0.0003589,10]
[402088039,1768515065259,-500.0,0.0003589,10]
[402088040,1768515065269,-500.0,0.0003589,10]
[402088041,1768515065278,-500.0,0.0003589,10]
[402088042,1768515065287,-1257.27,0.0003589,10]
[402088043,1768515065297,-500.0,0.0003589,10]
[402088044,1768515065306,-1060.76,0.0003589,10]
[402088045,1768515065315,-500.0,0.0003589,10]
[402088046,1768515065324,-500.0,0.0003589,10]
[402088047,1768515065334,-500.0,0.0003589,10]
[402088048,1768515065344,-500.0,0.0003589,10]
[402088049,1768515065356,-945.82,0.0003589,10]
[402088050,1768515065366,-500.0,0.0003589,10]
[402088051,1768515065376,-500.0,0.0003589,10]
[402088052,1768515065386,-500.0,0.0003589,10]
[402088053,1768515065396,-1081.0,0.0003589,10]
[402088054,1768515065406,-500.0,0.0003589,10]
[402088055,1768515065415,-500.0,0.0003589,10]
[402088056,1768515065424,-1973.9,0.0003589,10]
[402088057,1768515065434,-538.99,0.0003589,10]
[402088058,1768515065444,-500.0,0.0003589,10]
[402088059,1768515065453,-500.0,0.0003589,10]
[402088060,1768515065463,-500.0,0.0003589,10]
[402088061,1768515065473,-1261.36,0.0003589,10]
[402088062,1768515065483,-500.0,0.0003589,10]
[402088063,1768515065493,-582.11,0.0003589,10]
[402088064,1768515065503,-500.0,0.0003589,10]
[402088065,1768515065512,-942.89,0.0003589,10]
[402088066,1768515065522,-500.0,0.0003589,10]
[402088067,1768515065533,-500.0,0.0003589,10]
[402088068,1768515065543,-500.0,0.0003589,10]
[402088069,1768515065552,-500.0,0.0003589,10]
[402088070,1768515065562,-564.7,0.0003589,10]
[402088071,1768515065572,-500.0,0.0003589,10]
[402088072,1768515065581,-987.42,0.0003589,10]
[402088073,1768515065591,-1750.03,0.0003589,10]
[402088074,1768515065600,-563.96,0.0003589,10]
[402088075,1768515065610,-817.85,0.0003589,10]
[402088076,1768515065619,-537.49,0.0003589,10]
[402088077,1768515065628,-500.0,0.0003589,10]
[402088078,1768515065637,-1237.13,0.0003589,2]
[402088079,1768515065646,-552.29,0.0003589,10]
[402088080,1768515065655,-1270.63,0.0003589,10]
[402088081,1768515065664,-500.0,0.0003589,10]
[402088082,1768515065673,-500.0,0.0003589,10]
[402088083,1768515065682,-968.82,0.0003589,10]
[402088084,1768515065691,-500.0,0.0003589,10]
[402088085,1768515065700,-500.0,0.0003589,10]
[402088086,1768515065708,-500.0,0.0003589,10]
[402088087,1768515065715,-664.74,0.0003589,10]
[402088088,1768515065724,-500.0,0.0003589,10]
[402088089,1768515065735,-598.55,0.0003589,10]
[402088090,1768515065744,-500.0,0.0003589,10]
[402088091,1768515065753,-695.47,0.0003589,10]
[402088092,1768515065762,-500.0,0.0003589,10]
[402088093,1768515065771,-1000.0,0.0003589,10]
[402088094,1768515065780,-632.3,0.0003589,10]
[402088095,1768515065789,-599.85948396,0.0003589,10]
[402088096,1768515065798,-930.23,0.0003589,10]
[402088097,1768515065807,-581.64558793,0.0003589,30]
[402088098,1768515065816,-500.0,0.0003589,10]
[402088099,1768515065825,-500.0,0.0003589,10]
[402088100,1768515065834,-500.0,0.0003589,10]
[402088101,1768515065844,-500.0,0.0003589,10]
[402088102,1768515065853,-983.17,0.0003589,10]
[402088103,1768515065862,-1339.49,0.0003589,10]
[402088104,1768515065871,-500.0,0.0003589,10]
[402088105,1768515065880,-1377.27,0.0003589,10]
[402088106,1768515065889,-1461.43,0.0003589,10]
[402088107,1768515065898,-500.0,0.0003589,10]
[402088108,1768515065907,-500.0,0.0003589,10]
[402088109,1768515065916,-500.0,0.0003589,10]
[402088110,1768515065925,-500.0,0.0003589,10]
[402088111,1768515065934,-500.0,0.0003589,10]
[402088112,1768515065943,-548.13,0.0003589,10]
[402088113,1768515065952,-682.59,0.0003589,10]
[402088114,1768515065961,-500.0,0.0003589,10]
[402088115,1768515065969,-500.0,0.0003589,10]
[402088116,1768515065978,-598.47,0.0003589,10]
[402088117,1768515065988,-500.0,0.0003589,10]
[402088118,1768515066000,-500.0,0.0003589,10]
[402088119,1768515066010,-500.0,0.0003589,10]
[402088120,1768515066019,-500.0,0.0003589,10]
[402088121,1768515066028,-500.0,0.0003589,10]
[402088122,1768515066221,-500.0,0.0003589,10]
[402088123,1768515066243,-500.0,0.0003589,10]
[402088124,1768515066252,-511.85269235,0.0003589,10]
[402088125,1768515066262,-500.0,0.0003589,10]
[402088126,1768515066271,-500.0,0.0003589,10]
[402088127,1768515066280,-500.0,0.0003589,10]
[402088128,1768515066290,-500.0,0.0003589,10]
[402088129,1768515066302,-1129.27,0.0003589,10]
[402088130,1768515066313,-500.0,0.0003589,10]
[402088131,1768515066323,-500.0,0.0003589,10]
[402088132,1768515066333,-957.96,0.0003589,10]
[402088133,1768515066342,-500.0,0.0003589,10]
[402088134,1768515066351,-362.85859765,0.0003589,10]
[402088135,1768515066360,-503.12,0.0003589,10]
[402088136,1768515066370,-500.0,0.0003589,10]
[402088137,1768515066379,-1007.72,0.0003589,10]
[402088138,1768515066388,-500.0,0.0003589,10]
[402088139,1768515066399,-702.58,0.0003589,10]
[402088140,1768515066408,-500.0,0.0003589,10]
[402088141,1768515066419,-739.97,0.0003589,10]
[402088142,1768515066430,-717.74,0.0003589,10]
[402088143,1768515066440,-500.0,0.0003589,10]
[402088144,1768515066450,-608.01,0.0003589,10]
[402088145,1768515066459,-915.18,0.0003589,10]
[402088146,1768515066468,-500.0,0.0003589,10]
[402088147,1768515066478,-500.0,0.0003589,10]
[402088148,1768515066488,-500.0,0.0003589,10]
[402088149,1768515066498,-501.74,0.0003589,10]
[402088150,1768515066507,-695.88,0.0003589,10]
[402088151,1768515066517,-500.0,0.0003589,10]
[402088152,1768515066526,-790.73,0.0003589,10]
[402088153,1768515066535,-500.0,0.0003589,10]
[402088154,1768515066545,-500.0,0.0003589,10]
[402088155,1768515066555,-500.0,0.0003589,10]
[402088156,1768515066564,-1539.51,0.0003589,10]
[402088157,1768515066573,-500.0,0.0003589,10]
[402088158,1768515066583,-500.0,0.0003589,10]
[402088159,1768515066599,-891.58,0.0003589,10]
[402088160,1768515066608,-500.0,0.0003589,10]
[402088161,1768515066618,-558.47,0.0003589,10]
[402088162,1768515066628,-655.46,0.0003589,10]
[402088163,1768515066638,-500.0,0.0003589,10]
[402088164,1768515066648,-576.55,0.0003589,10]
[402088165,1768515066658,-500.0,0.0003589,10]
[402088166,1768515066667,-212.57768674,0.0003589,10]
[402088167,1768515066677,-844.94,0.0003589,10]
[402088168,1768515066686,-500.0,0.0003589,10]
[402088169,1768515066695,-962.67,0.0003589,10]
[402088170,1768515066705,-500.0,0.0003589,10]
[402088171,1768515066714,-516.66,0.0003589,10]
[402088172,1768515066723,-500.0,0.0003589,10]
[402088173,1768515066733,-1119.22,0.0003589,10]
[402088174,1768515066742,-195.58287231,0.0003589,2]
[402088175,1768515066751,-500.0,0.0003589,10]
[402088176,1768515066762,-802.1,0.0003589,10]
[402088177,1768515066772,-1012.73,0.0003589,10]
[402088178,1768515066781,-500.0,0.0003589,10]
[402088179,1768515066790,-500.0,0.0003589,10]
[402088180,1768515066799,-585.92,0.0003589,10]
[402088181,1768515066809,-500.0,0.0003589,10]
[402088182,1768515066818,-921.12,0.0003589,10]
[402088183,1768515066827,-582.89109144,0.0003589,10]
[402088184,1768515066836,-571.18,0.0003589,10]
[402088185,1768515066846,-500.0,0.0003589,10]
[402088186,1768515066856,-500.0,0.0003589,10]
[402088187,1768515066866,-1549.1,0.0003589,10]
[402088188,1768515066875,-484.22913868,0.0003589,10]
[402088189,1768515066885,-851.49,0.0003589,10]
[402088190,1768515066895,-500.0,0.0003589,10]
[402088191,1768515066907,-500.0,0.0003589,10]
[402088192,1768515066918,-500.0,0.0003589,10]
[402088193,1768515066929,-502.46,0.0003589,10]
[402088194,1768515066939,-500.0,0.0003589,10]
[402088195,1768515066951,-994.04,0.0003589,10]
[402088196,1768515066961,-1011.61,0.0003589,10]
[402088197,1768515066973,-500.0,0.0003589,10]
[402088198,1768515066983,-500.0,0.0003589,10]
[402088199,1768515066993,-500.0,0.0003589,10]
[402088200,1768515067004,-1000.0,0.0003589,10]
[402088201,1768515067015,-500.0,0.0003589,10]
[402088202,1768515067026,-500.0,0.0003589,10]
[402088203,1768515067037,-352.08902503,0.0003589,10]
[402088204,1768515067047,-815.84,0.0003589,10]
[402088205,1768515067058,-200.0,0.0003589,120]
[402088206,1768515067067,-563.86,0.0003589,10]
[402088207,1768515067078,-500.0,0.0003589,10]
[402088208,1768515067087,-913.05,0.0003589,10]
[402088209,1768515067097,-500.0,0.0003589,10]
[402088210,1768515067105,-500.0,0.0003589,10]
[402088211,1768515067117,-500.0,0.0003589,10]
[402088212,1768515067126,-500.0,0.0003589,10]
[402088213,1768515067136,-500.0,0.0003589,10]
[402088214,1768515067146,-500.0,0.0003589,10]
[402088215,1768515067155,-765.98,0.0003589,10]
[402088216,1768515067165,-500.0,0.0003589,10]
[402088217,1768515067174,-500.0,0.0003589,10]
[402088218,1768515067183,-500.0,0.0003589,10]
[402088219,1768515067193,-526.38,0.0003589,10]
[402088220,1768515067203,-640.34,0.0003589,10]
[402088221,1768515067212,-798.98,0.0003589,10]
[402088222,1768515067221,-500.0,0.0003589,10]
[402088223,1768515067231,-500.0,0.0003589,10]
[402088224,1768515067241,-1470.18,0.0003589,10]
[402088225,1768515067251,-500.0,0.0003589,10]
[402088226,1768515067260,-500.0,0.0003589,10]
[402088227,1768515067270,-1358.31,0.0003589,10]
[402088228,1768515067279,-2042.44,0.0003589,10]
[402088229,1768515067288,-614.07,0.0003589,10]
[402088230,1768515067298,-500.0,0.0003589,10]
[402088231,1768515067308,-500.0,0.0003589,10]
[402088232,1768515067318,-500.0,0.0003589,10]
[402088233,1768515067327,-625.66,0.0003589,10]
[402088234,1768515067336,-582.53,0.0003589,10]
[402088235,1768515067345,-500.0,0.0003589,10]
[402088236,1768515067356,-500.0,0.0003589,10]
[402088237,1768515067366,-677.77,0.0003589,10]
[402088238,1768515067376,-986.16,0.0003589,10]
[402088239,1768515067386,-500.0,0.0003589,10]
[402088240,1768515067395,-947.53,0.0003589,10]
[402088241,1768515067405,-500.0,0.0003589,10]
[402088242,1768515067415,-500.0,0.0003589,10]
[402088243,1768515067424,-500.0,0.0003589,10]
[402088244,1768515067434,-848.65,0.0003589,10]
[402088245,1768515067443,-500.0,0.0003589,10]
[402088246,1768515067452,-500.0,0.0003589,10]
[402088247,1768515067462,-500.0,0.0003589,10]
[402088248,1768515067471,-500.0,0.0003589,10]
[402088249,1768515067481,-691.12,0.0003589,10]
[402088250,1768515067491,-603.42,0.0003589,10]
[402088251,1768515067500,-2720.25,0.0003589,10]
[402088252,1768515067510,-1116.91,0.0003589,10]
[402088253,1768515067521,-500.0,0.0003589,10]
[402088254,1768515067531,-750.59,0.0003589,10]
[402088255,1768515067541,-500.0,0.0003589,10]
[402088256,1768515067550,-1038.06,0.0003589,10]
[402088257,1768515067559,-500.0,0.0003589,10]
[402088258,1768515067568,-500.0,0.0003589,10]
[402088259,1768515067578,-167.425482,0.0003589,10]
[402088260,1768515067587,-500.0,0.0003589,10]
[402088261,1768515067597,-500.0,0.0003589,10]
[402088262,1768515067606,-500.0,0.0003589,10]
[402088263,1768515067616,-640.95,0.0003589,10]
[402088264,1768515067625,-500.0,0.0003589,10]
[402088265,1768515067635,-500.0,0.0003589,10]
[402088266,1768515067644,-500.0,0.0003589,10]
[402088267,1768515067653,-742.07,0.0003589,10]
[402088268,1768515067663,-1213.75,0.0003589,10]
[402088269,1768515067672,-500.0,0.0003589,10]
[402088270,1768515067682,-500.0,0.0003589,10]
[402088271,1768515067691,-633.45101718,0.0003589,10]
[402088272,1768515067701,-522.97,0.0003589,10]
[402088273,1768515067709,-904.1,0.0003589,10]
[402088274,1768515067719,-500.0,0.0003589,10]
[402088275,1768515067728,-500.0,0.0003589,10]
[402088276,1768515067737,-500.0,0.0003589,10]
[402088277,1768515067750,-500.0,0.0003589,10]
[402088278,1768515067759,-500.0,0.0003589,10]
[402088279,1768515067769,-500.0,0.0003589,10]
[402088280,1768515067778,-500.0,0.0003589,10]
[402088281,1768515067787,-899.56,0.0003589,10]
[402088282,1768515067796,-500.0,0.0003589,10]
[402088283,1768515067805,-500.0,0.0003589,10]
[402088284,1768515067814,-500.0,0.0003589,10]
[402088285,1768515067823,-500.0,0.0003589,10]
[402088286,1768515067832,-1294.66,0.0003589,10]
[402088287,1768515067842,-500.0,0.0003589,10]
[402088288,1768515067851,-2075.74,0.0003589,10]
[402088289,1768515067860,-842.64,0.0003589,10]
[402088290,1768515067869,-500.0,0.0003589,10]
[402088291,1768515067879,-818.62,0.0003589,10]
[402088292,1768515067887,-557.40136352,0.0003589,10]
[402088293,1768515067897,-776.19,0.0003589,10]
[402088294,1768515067906,-1098.9,0.0003589,10]
[402088295,1768515067915,-500.0,0.0003589,10]
[402088296,1768515067924,-500.0,0.0003589,10]
[402088297,1768515067933,-699.44,0.0003589,10]
[402088298,1768515067943,-821.07,0.0003589,10]
[402088299,1768515067952,-601.3284006,0.0003589,10]
[402088300,1768515067962,-500.0,0.0003589,10]
[402088301,1768515067971,-500.0,0.0003589,10]
[402088302,1768515067979,-500.0,0.0003589,10]
[402088303,1768515067988,-649.39,0.0003589,10]
[402088304,1768515068000,-500.0,0.0003589,10]
[402088305,1768515068010,-627.85,0.0003589,10]
[402088306,1768515068019,-1369.09,0.0003589,10]
[402088307,1768515068030,-1073.04,0.0003589,10]
[402088308,1768515068039,-561.25920416,0.0003589,10]
[402088309,1768515068049,-531.43509055,0.0003589,10]
[402088310,1768515068058,-500.0,0.0003589,10]
[402088311,1768515068068,-500.0,0.0003589,10]
[402088312,1768515068078,-500.0,0.0003589,10]
[402088313,1768515068089,-835.32,0.0003589,10]
[402088314,1768515068099,-813.27,0.0003589,10]
[402088315,1768515068109,-503.11,0.0003589,10]
[402088316,1768515068118,-500.0,0.0003589,10]
[402088317,1768515068128,-500.0,0.0003589,10]
[402088318,1768515068138,-500.0,0.0003589,10]
[402088319,1768515068148,-785.26,0.0003589,10]
[402088320,1768515068157,-500.0,0.0003589,10]
[402088321,1768515068167,-970.63,0.0003589,10]
[402088322,1768515068177,-575.86,0.0003589,10]
[402088323,1768515068186,-500.0,0.0003589,10]
[402088324,1768515068196,-516.11,0.0003589,10]
[402088325,1768515068206,-500.0,0.0003589,10]
[402088326,1768515068215,-622.54,0.0003589,10]
[402088327,1768515068225,-619.77,0.0003589,10]
[402088328,1768515068235,-500.0,0.0003589,10]
[402088329,1768515068245,-1522.31,0.0003589,10]
[402088330,1768515068254,-629.85,0.0003589,10]
[402088331,1768515068264,-500.0,0.0003589,10]
[402088332,1768515068274,-500.0,0.0003589,10]
[402088333,1768515068283,-639.45,0.0003589,10]
[402088334,1768515068292,-2022.58,0.0003589,10]
[402088335,1768515068302,-512.52,0.0003589,10]
[402088336,1768515068312,-300.0,0.0003589,2]
[402088337,1768515068321,-585.55,0.0003589,10]
[402088338,1768515068331,-739.69,0.0003589,10]
[402088339,1768515068341,-1299.58,0.0003589,10]
[402088340,1768515068351,-738.74,0.0003589,10]
[402088341,1768515068362,-500.0,0.0003589,10]
[402088342,1768515068372,-639.25812546,0.0003589,10]
[402088343,1768515068382,-500.0,0.0003589,10]
[402088344,1768515068391,-582.15964455,0.0003589,10]
[402088345,1768515068402,-1366.19,0.0003589,10]
[402088346,1768515068412,-500.0,0.0003589,10]
[402088347,1768515068422,-500.0,0.0003589,10]
[402088348,1768515068432,-500.0,0.0003589,10]
[402088349,1768515068442,-500.0,0.0003589,10]
[402088350,1768515068452,-500.0,0.0003589,10]
[402088351,1768515068462,-500.0,0.0003589,10]
[402088352,1768515068471,-500.0,0.0003589,10]
[402088353,1768515068481,-662.72,0.0003589,10]
[402088354,1768515068491,-785.06,0.0003589,10]
[402088355,1768515068501,-1196.03,0.0003589,10]
[402088356,1768515068510,-500.0,0.0003589,10]
[402088357,1768515068519,-668.57,0.0003589,10]
[402088358,1768515068529,-1124.65,0.0003589,10]
[402088359,1768515068538,-500.0,0.0003589,10]
[402088360,1768515068547,-777.59,0.0003589,10]
[402088361,1768515068556,-1705.15,0.0003589,10]
[402088362,1768515068565,-759.01,0.0003589,10]
[402088363,1768515068575,-500.0,0.0003589,10]
[402088364,1768515068584,-500.0,0.0003589,10]
[402088365,1768515068594,-500.0,0.0003589,10]
[402088366,1768515068604,-989.09,0.0003589,10]
[402088367,1768515068614,-847.3,0.0003589,10]
[402088368,1768515068624,-635.17,0.0003589,10]
[402088369,1768515068634,-500.0,0.0003589,10]
[402088370,1768515068722,-525.63,0.0003589,10]
[402088371,1768515068732,-500.0,0.0003589,10]
[402088372,1768515068742,-530.80757903,0.0003589,10]
[402088373,1768515068751,-500.0,0.0003589,10]
[402088374,1768515068761,-500.0,0.0003589,10]
[402088375,1768515068770,-1128.83,0.0003589,10]
[402088376,1768515068779,-1563.63,0.0003589,10]
[402088377,1768515068788,-500.0,0.0003589,10]
[402088378,1768515068798,-500.0,0.0003589,10]
[402088379,1768515068807,-768.85,0.0003589,10]
[402088380,1768515068816,-500.0,0.0003589,10]
[402088381,1768515068826,-500.0,0.0003589,10]
[402088382,1768515068835,-500.0,0.0003589,10]
[402088383,1768515068844,-525.65271292,0.0003589,10]
[402088384,1768515068853,-1012.62,0.0003589,10]
[402088385,1768515068863,-500.0,0.0003589,10]
[402088386,1768515068872,-558.7,0.0003589,10]
[402088387,1768515068881,-500.0,0.0003589,10]
[402088388,1768515068891,-500.0,0.0003589,10]
[402088389,1768515068900,-1861.71,0.0003589,10]
[402088390,1768515068910,-500.0,0.0003589,10]
[402088391,1768515068919,-500.0,0.0003589,10]
[402088392,1768515068928,-513.31,0.0003589,10]
[402088393,1768515068938,-811.0,0.0003589,10]
[402088394,1768515068947,-846.34,0.0003589,10]
[402088395,1768515068956,-702.14,0.0003589,10]
[402088396,1768515068965,-504.55,0.0003589,10]
[402088397,1768515068975,-1222.04,0.0003589,10]
[402088398,1768515068984,-2208.42,0.0003589,10]
[402088399,1768515068995,-613.84,0.0003589,10]
[402088400,1768515069007,-500.0,0.0003589,10]
[402088401,1768515069015,-500.0,0.0003589,10]
[402088402,1768515069025,-858.76,0.0003589,10]
[402088403,1768515069034,-523.14071602,0.0003589,10]
[402088404,1768515069043,-500.0,0.0003589,10]
[402088405,1768515069052,-500.0,0.0003589,10]
[402088406,1768515069062,-923.2,0.0003589,10]
[402088407,1768515069071,-500.0,0.0003589,10]
[402088408,1768515069080,-1468.54,0.0003589,10]
[402088409,1768515069091,-2000.51,0.0003589,10]
[402088410,1768515069099,-1004.43,0.0003589,10]
[402088411,1768515069109,-606.34,0.0003589,10]
[402088412,1768515069119,-1326.62,0.0003589,10]
[402088413,1768515069128,-1242.83,0.0003589,10]
[402088414,1768515069138,-500.0,0.0003589,10]
[402088415,1768515069147,-4290.39,0.0003589,10]
[402088416,1768515069157,-1429.1,0.0003589,10]
[402088417,1768515069166,-343.13538796,0.0003589,10]
[402088418,1768515069175,-500.0,0.0003589,10]
[402088419,1768515069185,-500.0,0.0003589,10]
[402088420,1768515069194,-620.54,0.0003589,10]
[402088421,1768515069204,-615.11,0.0003589,10]
[402088422,1768515069213,-4636.45,0.0003589,10]
[402088423,1768515069222,-951.25,0.0003589,10]
[402088424,1768515069232,-572.03,0.0003589,10]
[402088425,1768515069242,-530.93,0.0003589,10]
[402088426,1768515069252,-1743.7,0.0003589,10]
[402088427,1768515069261,-1244.25,0.0003589,10]
[402088428,1768515069271,-500.0,0.0003589,10]
[402088429,1768515069281,-500.0,0.0003589,10]
[402088430,1768515069290,-1449.29,0.0003589,10]
[402088431,1768515069299,-1397.61,0.0003589,10]
[402088432,1768515069309,-548.34,0.0003589,10]
[402088433,1768515069317,-627.72,0.0003589,10]
[402088434,1768515069326,-500.0,0.0003589,10]
[402088435,1768515069336,-998.3,0.0003589,10]
[402088436,1768515069345,-1048.85,0.0003589,10]
[402088437,1768515069353,-621.75,0.0003589,10]
[402088438,1768515069363,-500.0,0.0003589,10]
[402088439,1768515069371,-500.0,0.0003589,10]
[402088440,1768515069381,-1082.71,0.0003589,10]
[402088441,1768515069390,-500.0,0.0003589,10]
[402088442,1768515069399,-500.0,0.0003589,10]
[402088443,1768515069409,-1384.4,0.0003589,10]
[402088444,1768515069417,-512.82,0.0003589,10]
[402088445,1768515069426,-500.0,0.0003589,10]
[402088446,1768515069436,-500.0,0.0003589,10]
[402088447,1768515069445,-1516.87,0.0003589,10]
[402088448,1768515069455,-1335.99,0.0003589,10]
[402088449,1768515069464,-500.0,0.0003589,10]
[402088450,1768515069473,-500.0,0.0003589,10]
[402088451,1768515069482,-500.0,0.0003589,120]
[402088452,1768515069492,-500.0,0.0003589,10]
[402088453,1768515069501,-943.05,0.0003589,10]